{"text_format":"1","workbook":"xlsx","n_sheets":2,"sheets":["Données","Bulletin de Paie"],"not_rendered":{"charts":0,"images":1,"macros":0,"external_links":0,"defined_names":9,"comments":1,"pivot_tables":0},"unopened":[],"bounds":{"document_bytes":16777216,"sheet_cells":100000,"rows_first":2000,"rows_last":500,"rows_between":2000,"halvings":0,"cell_chars":16384,"cell_head_chars":4096},"cells_cut":0,"cells_raw":0,"read":"whole","date_system":"1900"}

{"sheet":"Données","index":0,"n_rows":64,"n_cols":9,"rows_kept":64,"cut":false,"hidden":true,"merged":[[84,7,84,8],[36,7,36,8],[28,2,29,3],[37,1,37,2],[28,1,29,1],[80,7,80,8],[30,2,32,3],[55,5,55,6],[82,7,82,8],[34,1,35,2],[58,5,58,6],[53,5,53,6],[54,5,54,6],[57,5,57,6],[56,5,56,6],[10,25,10,26],[10,11,10,12],[10,13,10,14],[10,17,10,18],[10,19,10,20],[10,21,10,22],[10,23,10,24],[10,15,10,16],[7,14,8,15],[27,5,27,6],[28,5,29,6],[7,3,8,4],[7,11,8,13],[10,5,10,6],[28,4,29,4],[9,0,9,4],[13,0,13,2],[28,0,29,0],[7,0,8,2],[10,3,10,4],[34,0,35,0],[85,7,85,8],[36,1,36,2],[50,0,50,1],[81,7,81,8],[57,7,58,8],[47,0,47,1],[79,7,79,8],[59,5,59,6],[83,7,83,8],[60,0,60,1],[56,0,56,1],[59,0,59,1],[48,0,48,1],[51,0,51,1],[57,0,57,1]]}
["Année",2023,null,"UNSA-PROASSMAT"]
[]
["OUI","CDI",null,null,null,null,null,"V 2-0","Mise à jour pour 2023"]
["NON","CDD à terme imprécis",null,null,null,null,null,"V 1-6 ","Ajout Noms MG / IE_Min  / ANNEE_EN_COURS pour maj futures"]
[null,null,null,null,null,null,null,"V 1-6","Modification taux / IE"]
["Version :","V 2-0","Date :","2022-12-30",null,null,null,"V 1-5","Passage en version .xlsm"]
[null,null,null,null,null,null,null,"V 1-4","Modifications smic/MG/IE"]
["COTISATIONS SOCIALES",null,null,{"$f":"\"Au 1er Janvier \" & ANNEE_EN_COURS","v":"Au 1er Janvier 2023"},null,null,null,"V 1,3-3","Correction libelleé années complete et incomplete commentaire - nouvelle dénomination"]
[null,null,null,null,null,null,null,"V 1-3-3","Commentaire repas 5 euros au lieu de 4,95"]
["Base 100 % du salaire brut",null,null,null,null,null,null,"V 1-3-3","Correction faute / taille bug commentaires"]
[null,null,null,"Janvier",null,null,null,"V 1-3-2","Correction taux charge Alsace Moselle"]
[null,null,null,"Salariales","Patronales",null,null,"V 1-3-1","Correction (+0,25) taux prévoyance employeur"]
["Sécurité sociale (maladie, maternité, invalidité, dècès,",null,null,null,null,null,null,"V 1-3","Correction taux charges sociales employeur de 29,70 vers 29,65"]
["vieillesse, allocations familiales, accidents du travail",null,null,{"$f":"IF('Bulletin de Paie'!S3=\"NON\",(7.3%),(8.6%))","v":8.5999999999999993E-2},0.29649999999999999,null,null,"V 1-2","Correction taux prévoyance avec FIVED à 0,1% = 1,3%"]
["FNAL  Fond national d'aide au logement",null,null,null,1E-3,null,null,"V 1-1","Nouvelle valeur MG et formule calcul IE avec 90% MG"]
["Contribution Solidarité Autonomie",null,null,null,3.0000000000000001E-3,null,null,"V 1-1","Création d'un commentaire quand le mois saisi est \"juin\" pour donner les instructions de bascule des CP"]
["Formation professionnelle",null,null,null,5.4999999999999997E-3,null,null,"V 1-1","Bascule automatique de la formule pour affichage des dates CP lorsque l'on passe de mai à juin !"]
["Retraite complémentaire + CEG (contribution d'équilibre temporaire)",null,null,4.0099999999999997E-2,6.0100000000000001E-2,null,null,"V 1-1","\":\" après libellé zones saisissables"]
["Prévoyance",null,null,1.04E-2,1.55E-2,null,null,"V 1-1","Mise à jour commentaire CP -15 ans"]
["Indemnité conventionnelle de départ volontaire en retraite",null,null,null,6.0000000000000001E-3,null,null,"V 1-1","Mise à jour des commentaires IE"]
["Assurance chômage",null,null,null,4.0500000000000001E-2,null,null,"V 1-1","Correction taux de prévoyance"]
["Contribution au dialogue social",null,null,null,1.6000000000000001E-4,null,null,"V 1-1","Ajout version et date sur feuille en bas de page"]
["Base 98,25 % du salaire brut",null,0.98250000000000004,null,null,null,null,"V 1-1","Correction taux de charges"]
["CSG + CRDS non déductible sur le salaire de base",null,null,2.9000000000000001E-2,null,null,null,"V 1-1","Ajout indemnité départ volontaire en retraite"]
["CSG déductible sur le salaire de base",null,null,6.8000000000000005E-2,null,null,null,"V 1-1","Changement année vers 2022"]
[null,null,null,null,null,null,null,"V 1-0-4","Modifications contenu notes Indemnités repas"]
[null,null,null,null,null,null,null,"V 1-0-4","Ajout 3 notes sur zones PAS"]
["Indemnités","Base",null,null,null,null,null,"V 1-0-4","Zone taux PAS mise en rose (zone saisissable)"]
["Indemnités d'entretien","Base",{"$f":"\"MG\nAu 1er Janvier \" & ANNEE_EN_COURS","v":"MG\nAu 1er Janvier 2023"},null,null,null,null,"V 1-0-4","Feuille données : mise à jour indemnités"]
[null,null,null,null,null,null,null,"V 1-0-3","Affichage automatique des 29/30/31 du mois selon le mois saisi"]
["Indemnité entretien minima",2.65,4.01,null,null,null,null,"V 1-0-3","Souligement des dimanches dans le tableau d'heures"]
["Indemnité entretien Journées de 9 heures ou plus",{"$f":"ROUND(C31*0.9,4)","v":3.609},null,null,{"$f":"B32/9","v":0.40100000000000002},null,null,"V 1-0-2","Mise à jour Formule PAS/NET par Liliane"]
["Indemnité entretien à partir de la 10ème heure",{"$f":"B32/9","v":0.40100000000000002},null,null,null,null,null,"V 1-0-2","Cadrage / Formatage zone commentaire"]
[null,null,null,null,null,null,null,"V 1-0-1","Déblocage de la zone taux PAS qui ne pouvait être saisie"]
["TAUX DE CHARGES ",{"$f":"\"Au 1er Avril \" & ANNEE_EN_COURS","v":"Au 1er Avril 2023"},null,null,null,null,null,"V 1-0","Mise en place PAS"]
[]
["TAUX DE CHARGES ",{"$f":"(D14+D18+D19+D20+D21)+(((D24+D25)*98.25)/100)","v":0.23180249999999999}]
["COEFFICIENT MULTIPLICATEUR brut --> net",{"$f":"1-B37","v":0.76819749999999998}]
[]
[]
["SMIC pour calcul MG :"]
["au 1er janvier 2023 :",11.27]
[{"$f":"\"Copyright \" & ANNEE_EN_COURS & \" - Reproduction interdite - Tous droits réservés à UNSA-PROASSMAT\"","v":"Copyright 2023 - Reproduction interdite - Tous droits réservés à UNSA-PROASSMAT"}]
[]
[]
["CONGES PAYES pour FP de JANVIER à MAI"]
[]
[{"$f":"\"01/06/\" & ANNEE_EN_COURS-1&\" au\"","v":"01/06/2022 au"}]
[{"$f":"\"31/05/\" & ANNEE_EN_COURS & \" (N)\"","v":"31/05/2023 (N)"}]
[]
[{"$f":"\"01/06/\" & ANNEE_EN_COURS-2 & \" au\"","v":"01/06/2021 au"}]
[{"$f":"\"31/05/\" & ANNEE_EN_COURS-1 & \" (N-1)\"","v":"31/05/2022 (N-1)"}]
[]
[]
["CONGES PAYES pour FP de JUIN à DECEMBRE"]
[]
[{"$f":"\"01/06/\" & ANNEE_EN_COURS & \" au\"","v":"01/06/2023 au"}]
[{"$f":"\"31/05/\" & ANNEE_EN_COURS+1 & \" (N)\"","v":"31/05/2024 (N)"}]
[]
[{"$f":"\"01/06/\" & ANNEE_EN_COURS-1 & \" au\"","v":"01/06/2022 au"}]
[{"$f":"\"31/05/\" & ANNEE_EN_COURS & \" (N-1)\"","v":"31/05/2023 (N-1)"}]
[]
[]
["ATTENTION ! En juin de l'année en cours, les congés acquis avant le 31 mai de l'année précédente sont perdus ! Vous devez mettre :\n- en B75/B76, les mois et les semaines travaillées de juin de l'année précédente à mai de l'année en cours, c’est-à-dire les valeurs de B72/B73 du mois précédent,\n- en B72, la valeur '1' pour le mois de juin de l'année en cours,\n- en B73, le nombre de semaines travaillées en juin de l'année en cours !"]

{"sheet":"Bulletin de Paie","index":1,"n_rows":86,"n_cols":27,"rows_kept":86,"cut":false,"hidden":false,"merged":[[74,10,75,10],[74,11,75,11],[74,13,75,14],[74,15,75,15],[71,11,72,11],[71,13,72,14],[71,10,72,10],[1,17,1,18],[2,17,3,17],[2,18,3,18],[68,14,68,15],[70,1,70,15],[60,1,61,5],[60,6,61,7],[57,1,57,6],[51,8,51,14],[53,8,54,15],[59,8,66,15],[68,2,68,3],[68,4,68,5],[68,8,68,9],[68,11,68,12],[55,8,56,14],[24,1,24,7],[58,1,59,2],[48,8,48,12],[52,1,52,2],[11,14,11,15],[5,1,5,2],[5,3,5,7],[27,1,27,6],[27,7,27,8],[27,9,27,10],[44,9,44,10],[22,3,22,7],[12,14,12,15],[21,1,21,7],[46,1,46,7],[45,1,45,7],[8,13,8,15],[28,1,28,5],[56,1,56,4],[51,1,51,4],[45,8,45,11],[46,8,46,12],[52,8,52,14],[47,6,48,7],[77,1,77,15],[75,1,75,2],[72,1,72,2],[72,3,72,4],[40,1,40,5],[44,1,44,5],[44,6,44,8],[49,1,49,4],[49,8,50,15],[47,8,47,13],[75,3,75,4],[50,1,50,4],[76,1,76,15],[74,12,75,12],[71,1,71,2],[71,3,71,4],[71,7,72,7],[71,8,72,9],[71,12,72,12],[71,15,72,15],[74,1,74,2],[74,3,74,4],[74,7,75,7],[55,15,56,15],[74,8,75,9],[3,10,3,15],[7,10,7,15],[22,1,22,2],[1,1,1,7],[1,8,1,15],[2,1,2,2],[2,3,2,7],[2,8,2,9],[2,10,2,15],[10,1,10,15],[11,1,11,3],[11,5,11,7],[11,9,11,12],[8,1,8,7],[13,1,13,7],[9,10,9,12],[5,8,5,9],[8,11,8,12],[6,1,6,2],[23,1,23,7],[9,8,9,9],[4,8,4,9],[47,1,48,5],[0,14,0,15],[6,10,6,15],[12,5,12,7],[7,8,7,9],[6,8,6,9],[3,8,3,9],[79,4,83,15],[3,1,3,2],[5,10,5,15],[57,8,58,15],[36,1,36,5],[0,10,0,13],[0,3,0,9],[4,1,4,2],[4,10,4,15],[4,3,4,7],[3,3,3,7],[25,8,25,9],[7,1,7,2],[9,1,9,7],[7,3,7,7],[6,3,6,7],[12,9,12,12],[8,8,8,9]]}
[null,{"$f":"Données!D1","v":"UNSA-PROASSMAT"},null,"Bulletin de paie du mois de",null,null,null,null,null,null,"2023-01-01",null,null,null,{"$f":"YEAR(K1)","v":2023}]
[null,"EMPLOYEUR",null,null,null,null,null,null,"SALARIE",null,null,null,null,null,null,null,null,"A REMPLIR OBLIGATOIREMENT"]
[null,"Nom prénom :",null,null,null,null,null,null,"Nom prénom :",null,null,null,null,null,null,null,null,"Le salarié bénéficie-t-il du régime Haut Rhin, Bas Rhin, Moselle ?","OUI",null,null,null,null,null,null,null,"NON"]
[null,"Adresse :",null,null,null,null,null,null,"Adresse :",null,null,null,null,null,null,null,null,null,null,null,null,null,null,null,null,null,"NON"]
[null,"complément :",null,null,null,null,null,null,"complément :"]
[null,"CP Ville :",null,null,null,null,null,null,"CP Ville :"]
[null,"N°employeur :",null,null,null,null,null,null,"N° sécurité sociale :"]
[null,"Nom, prénom de l'enfant :",null,null,null,null,null,null,"N° salarié pajemploi :"]
[null,"Convention Collective de la branche du secteur des particuliers employeurs et de l'emploi à domicile",null,null,null,null,null,null,"Date d'embauche :",null,null,"Type contrat :",null,"CDI"]
[null,{"$f":"\"Service des URSSAF - Centre national  Pajemploi - 43013 Le PUY en VELAY cedex\"&\"  -  code NAF 8891.A\"","v":"Service des URSSAF - Centre national  Pajemploi - 43013 Le PUY en VELAY cedex  -  code NAF 8891.A"},null,null,null,null,null,null,"Qualification :",null,"Assistant(e) maternel(le) Agréé(e)"]
[]
[null,"Nombre semaines programmées :",null,null,null,"Heures normales par semaine",null,null,null,"Mensualisation (max 45h/semaine)",null,null,null,null,{"$f":"ROUND(IF(I12<45,(E12*I12)/12,(45*E12)/12),2)","v":0}]
[null,null,null,null,null,"Heures supplémentaires par semaine",null,null,null,"Heures supplémentaires mensualisées",null,null,null,null,{"$f":"ROUND(E12*I13/12,2)","v":0},null,null,null,null,null,"L+M+N","(L+M+N)<8"]
[null,"REMUNERATION",null,null,null,null,null,null,"Base","Taux","Montant","Jour","Heures","H. compl","H. sup","H. contrac"]
[null,"Salaire brut de base",null,null,null,null,null,null,{"$f":"O12","v":0},null,{"$f":"I15*J15","v":0},1,null,null,null,null,null,null,null,null,{"$f":"SUM(M15:O15)","v":0},{"$f":"IF(U15<8,U15,0)","v":0},{"$f":"IF(U15>=8,1,0)","v":0}]
[null,"Heures supplémentaires au delà de 45h, mensualisées ",null,null,null,null,null,null,{"$f":"O13","v":0},{"$f":"J15","v":0},{"$f":"I16*J16","v":0},2,null,null,null,null,null,null,null,null,0,{"$f":"IF(U16<8,U16,0)","v":0},{"$f":"IF(U16>=8,1,0)","v":0}]
[null,"Majoration des heures supplémentaires mensualisées :",null,null,null,null,0.25,null,0,{"$f":"J15*G17","v":0},{"$f":"I17*J17","v":0},3,null,null,null,null,null,null,null,null,0,0,0]
[null,"Heures complémentaires",null,null,null,"majoration :",null,null,0,{"$f":"$J$15*(1+G18)","v":0},{"$f":"I18*J18","v":0},4,null,null,null,null,null,null,null,null,0,0,0]
[null,"Heures supplémentaires",null,null,null,"majoration :",null,null,0,{"$f":"$J$15*(1+G19)","v":0},{"$f":"I19*J19","v":0},5,null,null,null,null,null,null,null,null,0,0,0]
[null,"Absence de l'enfant",null,null,null,null,null,null,0,null,{"$f":"-I20*J20","v":0},6,null,null,null,null,null,null,null,null,0,0,0]
[null,"Absence du salarié",null,null,null,null,null,null,0,null,{"$f":"-I21*J21","v":0},7,null,null,null,null,null,null,null,null,0,0,0]
[null,"Indemnité de congés payés pendant le contrat",null,null,null,null,null,null,null,null,null,8,null,null,null,null,null,null,null,null,0,0,0]
[null,"Régularisation",null,null,null,null,null,null,null,null,null,9,null,null,null,null,null,null,null,null,0,0,0]
[null,"Indemnité compensatrice de congés payés  - ICCP - Uniquement à la rupture du contrat",null,null,null,null,null,null,null,null,null,10,null,null,null,null,null,null,null,null,0,0,0]
[null,"Prime de précarité si CDD",null,null,null,null,null,null,null,0.1,{"$f":"I25*J25","v":0},11,null,null,null,null,null,null,null,null,0,0,0]
[null,null,null,null,null,null,null,null,"Salaire brut",null,{"$f":"(SUM(K15:K25))","v":0},12,null,null,null,null,null,null,null,null,0,0,0]
[null,null,null,null,null,null,null,"SALARIALES",null,"PATRONALES",null,13,null,null,null,null,null,null,null,null,0,0,0]
[null,"COTISATIONS SOCIALES",null,null,null,null,null,"SALARIALES",null,"PATRONALES",null,14,null,null,null,null,null,null,null,null,0,0,0]
[null,"Base 100 % du salaire brut",null,null,null,null,"Base","Taux","Montant","Taux","Montant",15,null,null,null,null,null,null,null,null,0,0,0]
[null,{"$f":"Données!A13","v":"Sécurité sociale (maladie, maternité, invalidité, dècès,"},null,null,null,null,{"$f":"K26","v":0},null,null,null,{"$f":"J30*G30","v":0},16,null,null,null,null,null,null,null,null,0,0,0]
[null,{"$f":"Données!A14","v":"vieillesse, allocations familiales, accidents du travail"},null,null,null,null,{"$f":"$K$26","v":0},{"$f":"Données!D14","v":8.5999999999999993E-2},{"$f":"G31*H31","v":0},{"$f":"Données!E14","v":0.29649999999999999},0,17,null,null,null,null,null,null,null,null,0,0,0]
[null,{"$f":"Données!A15","v":"FNAL  Fond national d'aide au logement"},null,null,null,null,0,null,null,{"$f":"Données!E15","v":1E-3},0,18,null,null,null,null,null,null,null,null,0,0,0]
[null,{"$f":"Données!A16","v":"Contribution Solidarité Autonomie"},null,null,null,null,0,null,null,{"$f":"Données!E16","v":3.0000000000000001E-3},0,19,null,null,null,null,null,null,null,null,0,0,0]
[null,{"$f":"Données!A17","v":"Formation professionnelle"},null,null,null,null,0,null,null,{"$f":"Données!E17","v":5.4999999999999997E-3},0,20,null,null,null,null,null,null,null,null,0,0,0]
[null,{"$f":"Données!A18","v":"Retraite complémentaire + CEG (contribution d'équilibre temporaire)"},null,null,null,null,0,{"$f":"Données!D18","v":4.0099999999999997E-2},{"$f":"G35*H35","v":0},{"$f":"Données!E18","v":6.0100000000000001E-2},0,21,null,null,null,null,null,null,null,null,0,0,0]
[null,{"$f":"Données!A19","v":"Prévoyance"},null,null,null,null,0,{"$f":"Données!D19","v":1.04E-2},{"$f":"G36*H36","v":0},{"$f":"Données!E19","v":1.55E-2},0,22,null,null,null,null,null,null,null,null,0,0,0]
[null,"Réduction cotisation sur HC/HM",null,null,null,null,{"$f":"SUM(K16:K19)","v":0},0.11310000000000001,{"$f":"-G37*H37","v":0},null,0,23,null,null,null,null,null,null,null,null,0,0,0]
[null,{"$f":"Données!A21","v":"Assurance chômage"},null,null,null,null,0,{"$f":"Données!D21","v":0},{"$f":"G38*H38","v":0},{"$f":"Données!E21","v":4.0500000000000001E-2},0,24,null,null,null,null,null,null,null,null,0,0,0]
[null,{"$f":"Données!A22","v":"Contribution au dialogue social"},null,null,null,null,0,null,null,{"$f":"Données!E22","v":1.6000000000000001E-4},0,25,null,null,null,null,null,null,null,null,0,0,0]
[null,{"$f":"Données!A20","v":"Indemnité conventionnelle de départ volontaire en retraite"},null,null,null,null,{"$f":"G30","v":0},null,null,{"$f":"Données!E20","v":6.0000000000000001E-3},{"$f":"G40*J40","v":0},26,null,null,null,null,null,null,null,null,0,0,0]
[null,{"$f":"Données!A23","v":"Base 98,25 % du salaire brut"},null,null,null,null,null,null,null,null,null,27,null,null,null,null,null,null,null,null,0,0,0]
[null,{"$f":"Données!A24","v":"CSG + CRDS non déductible sur le salaire de base"},null,null,null,null,{"$f":"K26*Données!C23","v":0},{"$f":"Données!D24","v":2.9000000000000001E-2},{"$f":"G42*H42","v":0},null,null,28,null,null,null,null,null,null,null,null,0,0,0]
[null,{"$f":"Données!A25","v":"CSG déductible sur le salaire de base"},null,null,null,null,{"$f":"G42","v":0},{"$f":"Données!D25","v":6.8000000000000005E-2},{"$f":"G43*H43","v":0},null,null,{"$f":"IF(DAY(EOMONTH(K1,0))>=29,\"29\",\"\")","v":"29"},null,null,null,null,null,null,null,null,0,0,0]
[null,null,null,null,null,null,null,null,null,null,null,{"$f":"IF(DAY(EOMONTH(K1,0))>=30,\"30\",\"\")","v":"30"},null,null,null,null,null,null,null,null,0,0,0]
[null,"Total cotisations sociales",null,null,null,null,{"$f":"ROUND(SUM(I30:I44),2)","v":0},null,null,{"$f":"ROUND(SUM(K30:K44),2)","v":0},null,{"$f":"IF(DAY(EOMONTH(K1,0))=31,\"31\",\"\")","v":"31"},null,null,null,null,null,null,null,null,0,0,0]
[null,null,null,null,null,null,null,null,"Total ",null,null,null,{"$f":"SUM(M15:M45)","v":0},null,null,null,null,null,null,null,null,{"$f":"SUM(V15:V45)","v":0},{"$f":"SUM(W15:W45)","v":0}]
[null,null,null,null,null,null,null,null,"Heures complémentaires du mois",null,null,null,null,{"$f":"SUM(N15:N45)","v":0}]
[null,"Salaire net mensuel",null,null,null,null,{"$f":"ROUND(K26-G45,2)","v":0},null,"Heures supplémentaires du mois",null,null,null,null,null,{"$f":"SUM(O15:O45)","v":0}]
[null,null,null,null,null,null,null,null,"Heures contractuelles rémunérées du  mois",null,null,null,null,null,null,{"$f":"SUM(P15:P45)+M46","v":0}]
[null,"Indemnités  ",null,null,null,"Base","Nbre","Montant","JOURS & HEURES D'ACCUEIL (IRPP)"]
[null,"IE - Indemnité entretien négociée au contrat (par jour)",null,null,null,null,null,{"$f":"G51*F51","v":0}]
[null,"Indemnité entretien des hrs cplt et sup non mensualisées",null,null,null,null,null,{"$f":"G52*F52","v":0},"Nombre de jours de 8 heures ou plus d'activité",null,null,null,null,null,null,{"$f":"W46","v":0}]
[null,"IN - Indemnité de repas",null,null,null,null,null,{"$f":"G53*F53","v":0},"Cumuls des heures des journées inférieures à 8 heures d'activité",null,null,null,null,null,null,{"$f":"V46","v":0}]
[null,"IN - Indemnité de repas fourni par les parents",null,null,null,null,null,{"$f":"G54*F54","v":0},"POUR LA DECLARATION   PAJEMPLOI"]
[null,"IK - Indemnité kilométrique",null,null,null,null,null,{"$f":"G55*F55","v":0}]
[null,"Indemnité de rupture",null,null,null,null,null,null,"Nombre de jours d'activité à déclarer à pajemploi ",null,null,null,null,null,null,0]
[null,"Autres"]
[null,"Total des indemnités à régler :",null,null,null,null,null,{"$f":"ROUND(SUM(H51:H57),2)-H54","v":0},"Commentaires du mois"]
[null,"Imposition à la source",null,"Base :",{"$f":"E69","v":0},"Montant :",null,{"$f":"+E59*E60","v":0}]
[null,null,null,"Taux :"]
[null,"MONTANT NET A PAYER",null,null,null,null,{"$f":"G48+H58-H59","v":0}]
[]
[]
[null,"Date paiement :",null,null,"Signature de l'employeur :"]
[null,"Banque :"]
[null,"N°chèque ou virement :"]
[]
[]
[null,"MENSUEL","Net imposable ",null,{"$f":"K26-G37-G45+I42+SUM(H51:H55)","v":0},null,"IE + IN + IK",{"$f":"SUM(H51:H55)","v":0},"CUMUL ANNUEL ",null,"Net imposable",{"$f":"E69","v":0},null,"IE +IN + IK",{"$f":"H69","v":0}]
[]
[null,"CONGES PAYES"]
[null,{"$f":"IF(AND(MONTH(K1)>=1,MONTH(K1)<6),Données!A48,Données!A57)","v":"01/06/2022 au"},null,"Nb de mois travaillés",null,0,"Jours enfants",null,"Total jrs ouvrables acquis",null,{"$f":"IF(ROUNDUP(F73/4*2.5+F72*2.5,0)+H72>30,(30),(ROUNDUP(F73/4*2.5+F72*2.5,0)+H72))","v":0},"Nb de jrs pris",0,"SOLDE",null,{"$f":"K72-M72","v":0}]
[null,{"$f":"IF(AND(MONTH(K1)>=1,MONTH(K1)<6),Données!A49,Données!A58)","v":"31/05/2023 (N)"},null,"Nb de semaines travaillées",null,0,"- 15 ans"]
[]
[null,{"$f":"IF(AND(MONTH(K1)>=1,MONTH(K1)<6),Données!A51,Données!A60)","v":"01/06/2021 au"},null,"Nb de mois travaillés",null,0,"Jours enfants",null,"Total jrs ouvrables acquis",null,{"$f":"IF(ROUNDUP(F76/4*2.5+F75*2.5,0)+H75>30,(30),(ROUNDUP(F76/4*2.5+F75*2.5,0)+H75))","v":0},"Nb de jrs pris",0,"SOLDE",null,{"$f":"K75-M75","v":0}]
[null,{"$f":"IF(AND(MONTH(K1)>=1,MONTH(K1)<6),Données!A52,Données!A61)","v":"31/05/2022 (N-1)"},null,"Nb de semaines travaillées",null,0,"- 15 ans"]
[null,"Dans votre intérêt et pour vous aider à faire valoir vos droits, conservez votre bulletin de salaire sans limitation de durée"]
[null,{"$f":"Données!A43","v":"Copyright 2023 - Reproduction interdite - Tous droits réservés à UNSA-PROASSMAT"}]
[]
[null,{"$f":"INFO(\"version\")","v":"16.0"},{"$f":"Version","v":"V 2-0"},null,{"$f":"IF(MONTH(K1)=6,Données!A64,\"\")","v":""}]
[null,null,{"$f":"Date","v":"2022-12-30"}]
[]
[]
[]
[]
[null,"Aucun droit n'ayant été cédé, ce fichier est la propriété de Céline SCHAAR"]